fUSD/lending_fUSD_20251120
["ID","MTS","AMOUNT","RATE_DAILY","PERIOD"]
[394473700,1763616789020,151.0,0.00042049,120]
[394473701,1763616789345,151.0,0.00042049,120]
[394473702,1763616789654,151.0,0.00042049,120]
[394473703,1763616789717,151.0,0.00042049,120]
[394473704,1763616789959,151.0,0.00042049,120]
[394473705,1763616790050,151.0,0.00042049,120]
[394473706,1763616790248,151.0,0.00042049,120]
[394473707,1763616790317,151.0,0.00042049,120]
[394473708,1763616790376,151.0,0.00042049,120]
[394473709,1763616790574,151.0,0.00042049,120]
[394473710,1763616790634,151.0,0.00042049,120]
[394473711,1763616790691,151.0,0.00042049,120]
[394473712,1763616790758,151.0,0.00042049,120]
[394473713,1763616790876,151.0,0.00042049,120]
[394473714,1763616790934,151.0,0.00042049,120]
[394473715,1763616790991,151.0,0.00042049,120]
[394473716,1763616791068,151.0,0.00042049,120]
[394473717,1763616791218,151.0,0.00042049,120]
[394473718,1763616791312,290.283127,0.00042049,120]
[394473719,1763616791458,180.179548,0.00042049,120]
[394473720,1763616791533,151.0,0.00042049,120]
[394473721,1763616791854,151.0,0.00042049,120]
[394473722,1763616792148,162.827408,0.00042049,120]
[394473723,1763616797888,962.2583,0.00015981,2]
[394473724,1763616798777,151.0,0.00042049,120]
[394473727,1763616799062,151.0,0.00042049,120]
[394473733,1763616799365,151.0,0.00042049,120]
[394473741,1763616799747,151.0,0.00042049,120]
[394473747,1763616800051,151.0,0.00042049,120]
[394473753,1763616800350,151.0,0.00042049,120]
[394473756,1763616800660,151.0,0.00042049,120]
[394473757,1763616800949,151.0,0.00042049,120]
[394473758,1763616801065,151.0,0.00042049,120]
[394473759,1763616801280,151.0,0.00042049,120]
[394473760,1763616801400,151.0,0.00042049,120]
[394473761,1763616801585,151.0,0.00042049,120]
[394473762,1763616801692,163.165443,0.00042049,120]
[394473763,1763616801885,151.0,0.00042049,120]
[394473764,1763616802174,151.0,0.00042049,120]
[394473765,1763616802572,264.854521,0.00042049,120]
[394473766,1763616803498,151.0,0.00042049,120]
[394473767,1763616803825,151.0,0.00042049,120]
[394473768,1763616804146,151.0,0.00042049,120]
[394473769,1763616804898,152.851024,0.00042049,120]
[394473770,1763616804958,151.0,0.00042049,120]
[394473771,1763616805210,151.0,0.00042049,120]
[394473772,1763616805603,151.0,0.00042049,120]
[394473773,1763616805938,151.0,0.00042049,120]
[394473774,1763616806242,164.126949,0.00042049,120]
[394473775,1763616807789,239.707317,0.00042049,120]
[394473777,1763616808123,239.707317,0.00042049,120]
[394473778,1763616808303,652.241188,0.00042049,120]
[394473779,1763616808397,239.707317,0.00042049,120]
[394473780,1763616808588,652.241188,0.00042049,120]
[394473781,1763616808708,239.707317,0.00042049,120]
[394473782,1763616808878,652.241188,0.00042049,120]
[394473783,1763616809006,239.707317,0.00042049,120]
[394473784,1763616809170,652.241188,0.00042049,120]
[394473785,1763616809318,239.707317,0.00042049,120]
[394473786,1763616809597,652.241188,0.00042049,120]
[394473787,1763616809662,239.707317,0.00042049,120]
[394473788,1763616809901,652.241188,0.00042049,120]
[394473789,1763616809968,239.707317,0.00042049,120]
[394473790,1763616810168,652.241188,0.00042049,120]
[394473791,1763616810231,239.707317,0.00042049,120]
[394473792,1763616810470,652.241188,0.00042049,120]
[394473793,1763616810579,239.707317,0.00042049,120]
[394473794,1763616810783,652.241188,0.00042049,120]
[394473795,1763616810850,151.0,0.00042049,120]
[394473796,1763616810910,239.707317,0.00042049,120]
[394473797,1763616811092,652.241188,0.00042049,120]
[394473798,1763616811259,239.707317,0.00042049,120]
[394473799,1763616811320,151.0,0.00042049,120]
[394473800,1763616811383,652.241188,0.00042049,120]
[394473801,1763616811557,239.707317,0.00042049,120]
[394473802,1763616811644,652.241188,0.00042049,120]
[394473803,1763616811834,239.707317,0.00042049,120]
[394473804,1763616811978,162.570063,0.00042049,120]
[394473805,1763616812020,652.241188,0.00042049,120]
[394473806,1763616812130,239.707317,0.00042049,120]
[394473807,1763616812346,652.241188,0.00042049,120]
[394473808,1763616812389,162.570063,0.00042049,120]
[394473809,1763616812432,239.707317,0.00042049,120]
[394473810,1763616812634,652.241188,0.00042049,120]
[394473811,1763616812741,239.707317,0.00042049,120]
[394473812,1763616812919,162.570063,0.00042049,120]
[394473813,1763616812961,652.241188,0.00042049,120]
[394473814,1763616813050,239.707317,0.00042049,120]
[394473815,1763616813206,151.0,0.00042049,120]
[394473816,1763616813246,652.241188,0.00042049,120]
[394473817,1763616813288,162.570063,0.00042049,120]
[394473818,1763616813337,239.707317,0.00042049,120]
[394473819,1763616813525,160.556513,0.00042049,120]
[394473820,1763616813594,652.241188,0.00042049,120]
[394473821,1763616813681,162.570063,0.00042049,120]
[394473822,1763616813723,239.707315,0.00042049,120]
[394473823,1763616813876,652.241188,0.00042049,120]
[394473824,1763616814024,162.570063,0.00042049,120]
[394473825,1763616814259,652.241187,0.00042049,120]
[394473826,1763616815031,162.570063,0.00042049,120]
[394473827,1763616815276,151.0,0.00042049,120]
[394473828,1763616815323,162.570063,0.00042049,120]
[394473829,1763616815586,151.0,0.00042049,120]
[394473830,1763616815634,162.570063,0.00042049,120]
[394473831,1763616815876,151.0,0.00042049,120]
[394473832,1763616815914,151.0,0.00042049,120]
[394473833,1763616816002,162.570063,0.00042049,120]
[394473834,1763616816201,151.0,0.00042049,120]
[394473835,1763616816422,162.570063,0.00042049,120]
[394473836,1763616816491,151.0,0.00042049,120]
[394473837,1763616816806,162.570063,0.00042049,120]
[394473838,1763616823218,-162.570063,0.00042049,120]
[394473839,1763616823261,-162.570063,0.00042049,120]
[394473840,1763616823298,-162.570063,0.00042049,120]
[394473841,1763616823338,-162.570063,0.00042049,120]
[394473842,1763616823379,-162.570063,0.00042049,120]
[394473843,1763616823416,-162.570063,0.00042049,120]
[394473844,1763616823456,-162.570063,0.00042049,120]
[394473845,1763616823496,-162.570061,0.00042049,120]
[394473846,1763616825096,151.0,0.00042049,120]
[394473847,1763616825389,151.0,0.00042049,120]
[394473848,1763616825675,172.490559,0.00042049,120]
[394473850,1763616832152,299.99,0.00017073,4]
[394473851,1763616845058,152.499025,0.00042049,120]
[394473852,1763616850180,151.0,0.00042049,120]
[394473853,1763616850887,429.831757,0.00042049,120]
[394473854,1763616851203,151.0,0.00042049,120]
[394473855,1763616851244,429.831757,0.00042049,120]
[394473856,1763616851519,429.831757,0.00042049,120]
[394473857,1763616851605,151.0,0.00042049,120]
[394473858,1763616851820,429.831757,0.00042049,120]
[394473859,1763616851984,151.0,0.00042049,120]
[394473860,1763616852130,429.831757,0.00042049,120]
[394473861,1763616852360,151.0,0.00042049,120]
[394473862,1763616852446,429.831757,0.00042049,120]
[394473863,1763616852653,151.0,0.00042049,120]
[394473864,1763616852758,429.831757,0.00042049,120]
[394473865,1763616853028,151.0,0.00042049,120]
[394473866,1763616853237,429.831757,0.00042049,120]
[394473867,1763616853410,151.0,0.00042049,120]
[394473868,1763616853632,429.831757,0.00042049,120]
[394473869,1763616853740,151.0,0.00042049,120]
[394473870,1763616853948,429.831757,0.00042049,120]
[394473871,1763616854243,151.0,0.00042049,120]
[394473872,1763616854311,429.831757,0.00042049,120]
[394473873,1763616854612,429.831757,0.00042049,120]
[394473874,1763616854671,151.0,0.00042049,120]
[394473875,1763616854912,429.831757,0.00042049,120]
[394473876,1763616855036,151.0,0.00042049,120]
[394473877,1763616855245,429.831757,0.00042049,120]
[394473878,1763616855390,151.0,0.00042049,120]
[394473879,1763616855583,429.831757,0.00042049,120]
[394473880,1763616855774,151.0,0.00042049,120]
[394473881,1763616855878,429.831757,0.00042049,120]
[394473882,1763616856160,151.0,0.00042049,120]
[394473883,1763616856215,429.831757,0.00042049,120]
[394473884,1763616856462,185.704853,0.00042049,120]
[394473885,1763616856510,429.831757,0.00042049,120]
[394473886,1763616856759,429.831757,0.00042049,120]
[394473887,1763616857063,429.831752,0.00042049,120]
[394473888,1763616861099,160.248266,0.00042049,120]
[394473889,1763616863267,151.0,0.00042049,120]
[394473890,1763616863571,151.0,0.00042049,120]
[394473891,1763616863866,151.0,0.00042049,120]
[394473892,1763616866457,151.0,0.00042049,120]
[394473893,1763616866792,151.0,0.00042049,120]
[394473894,1763616867093,151.0,0.00042049,120]
[394473895,1763616867382,294.32589419,0.00042049,120]
[394473896,1763616869362,151.0,0.00042049,120]
[394473897,1763616870335,151.0,0.00042049,120]
[394473898,1763616870664,151.0,0.00042049,120]
[394473899,1763616870973,151.0,0.00042049,120]
[394473900,1763616871307,151.0,0.00042049,120]
[394473901,1763616871665,151.0,0.00042049,120]
[394473902,1763616872014,151.0,0.00042049,120]
[394473903,1763616872463,151.0,0.00042049,120]
[394473904,1763616872597,151.0,0.00042049,120]
[394473905,1763616872880,151.0,0.00042049,120]
[394473906,1763616873183,151.0,0.00042049,120]
[394473907,1763616873460,151.0,0.00042049,120]
[394473908,1763616873817,287.98212,0.00042049,120]
[394473909,1763616874682,151.0,0.00042049,120]
[394473910,1763616874957,153.686735,0.00042049,120]
[394473911,1763616875000,151.0,0.00042049,120]
[394473912,1763616875310,151.0,0.00042049,120]
[394473913,1763616875622,151.0,0.00042049,120]
[394473914,1763616875902,151.0,0.00042049,120]
[394473915,1763616876206,151.0,0.00042049,120]
[394473916,1763616876499,172.683836,0.00042049,120]
[394473917,1763616876971,151.0,0.00042049,120]
[394473918,1763616877291,151.0,0.00042049,120]
[394473919,1763616879150,151.0,0.00042049,120]
[394473920,1763616879465,295.320947,0.00042049,120]
[394473921,1763616881880,151.0,0.00042049,120]
[394473922,1763616882165,266.093382,0.00042049,120]
[394473923,1763616887448,151.0,0.00042049,120]
[394473924,1763616887748,151.0,0.00042049,120]
[394473925,1763616888087,151.0,0.00042049,120]
[394473926,1763616888444,151.0,0.00042049,120]
[394473927,1763616888750,151.0,0.00042049,120]
[394473928,1763616889055,151.0,0.00042049,120]
[394473929,1763616890924,153.575775,0.00042049,120]
[394473930,1763616903193,151.0,0.0004205,120]
[394473931,1763616903489,151.0,0.0004205,120]
[394473932,1763616903779,182.715297,0.0004205,120]
[394473933,1763616909413,151.903598,0.0004205,120]
[394473934,1763616925862,151.0,0.0004205,120]
[394473935,1763616931426,151.0,0.0004205,120]
[394473936,1763616931844,151.0,0.0004205,120]
[394473937,1763616932130,151.0,0.0004205,120]
[394473938,1763616932413,151.0,0.0004205,120]
[394473939,1763616932753,151.0,0.0004205,120]
[394473940,1763616933049,151.0,0.0004205,120]
[394473941,1763616933336,151.0,0.0004205,120]
[394473942,1763616933622,151.0,0.0004205,120]
[394473943,1763616933931,151.0,0.0004205,120]
[394473944,1763616934243,151.0,0.0004205,120]
[394473945,1763616934523,151.0,0.0004205,120]
[394473946,1763616934825,163.109454,0.0004205,120]
[394473947,1763616966303,151.0,0.0004205,120]
[394473948,1763616966597,151.0,0.0004205,120]
[394473949,1763616969266,151.0,0.0004205,120]
[394473950,1763616969566,174.318665,0.0004205,120]
[394473951,1763616971286,151.0,0.0004205,120]
[394473952,1763616971587,151.0,0.0004205,120]
[394473953,1763616980850,151.0,0.0004205,120]
[394473954,1763616981121,151.0,0.0004205,120]
[394473955,1763616985873,160.201008,0.0004205,120]
[394473956,1763616987852,151.0,0.0004205,120]
[394473957,1763616987984,151.0,0.0004205,120]
[394473958,1763616995441,151.0,0.0004205,120]
[394473959,1763616995737,151.0,0.0004205,120]
[394473960,1763616996041,151.0,0.0004205,120]
[394473961,1763617048895,151.0,0.0004205,120]
[394473962,1763617049227,153.786816,0.0004205,120]
[394473963,1763617052437,151.0,0.0004205,120]
[394473964,1763617052723,153.777927,0.0004205,120]
[394473965,1763617055815,151.0,0.0004205,120]
[394473966,1763617056122,151.0,0.0004205,120]
[394473967,1763617056596,151.0,0.0004205,120]
[394473968,1763617056718,152.019819,0.0004205,120]
[394473969,1763617068786,159.645919,0.0004205,120]
[394473971,1763617078936,178.64529989,0.0004205,120]
[394473972,1763617080440,418.18466383,0.0004205,120]
[394473973,1763617082427,342.40787437,0.0004205,120]
[394473974,1763617085986,263.53193212,0.0004205,120]
[394473975,1763617087642,151.0,0.0004205,120]
[394473976,1763617088018,151.0,0.0004205,120]
[394473977,1763617088368,265.476293,0.0004205,120]
[394473978,1763617089801,402.58094884,0.0004205,120]
[394473979,1763617090693,151.0,0.0004205,120]
[394473980,1763617100386,200.97400885,0.0004205,120]
[394473981,1763617104068,151.0,0.0004205,120]
[394473982,1763617104364,151.0,0.0004205,120]
[394473983,1763617104702,151.0,0.0004205,120]
[394473984,1763617105089,151.0,0.0004205,120]
[394473985,1763617105386,151.0,0.0004205,120]
[394473986,1763617105678,151.0,0.0004205,120]
[394473987,1763617105781,409.58844126,0.0004205,120]
[394473988,1763617105969,151.0,0.0004205,120]
[394473989,1763617106274,165.683017,0.0004205,120]
[394473990,1763617119536,292.436263,0.0004205,120]
[394473991,1763617123874,400.0,0.0004205,120]
[394473992,1763617125269,409.07880809,0.0004205,120]
[394473993,1763617129077,436.8491893,0.0004205,120]
[394473994,1763617137571,404.97423463,0.0004205,120]
[394473995,1763617144607,1153.1311802,0.0004205,30]
[394473997,1763617153755,151.967821,0.0004205,120]
[394473998,1763617155447,437.01923167,0.0004205,120]
[394473999,1763617156747,422.82214302,0.0004205,120]
[394474000,1763617160956,151.0,0.0004205,120]
[394474001,1763617161343,151.901834,0.0004205,120]
[394474002,1763617164417,151.693682,0.0004205,120]
[394474003,1763617164939,151.0,0.0004205,120]
[394474004,1763617165245,246.696339,0.0004205,120]
[394474005,1763617166010,160.301363,0.0004205,120]
[394474006,1763617166590,151.0,0.0004205,120]
[394474007,1763617167286,316.44526942,0.0004205,120]
[394474008,1763617167864,-925.2,0.00024658,30]
[394474009,1763617167911,-196.13950429,0.00029096,30]
[394474010,1763617167950,-925.2,0.00029704,30]
[394474011,1763617167984,-9029.96623941,0.000299,30]
[394474012,1763617168014,-25156.94154387,0.0003,30]
[394474013,1763617168045,-5053.74595318,0.0003013,30]
[394474014,1763617168077,-173.72585769,0.00030493,110]
[394474015,1763617168105,-129784.07765121,0.00030888,60]
[394474016,1763617168133,-21212.69790852,0.00030888,60]
[394474017,1763617168161,-320.095113,0.00030888,31]
[394474018,1763617168189,-320.095113,0.00030888,31]
[394474019,1763617168219,-313.126214,0.00030888,31]
[394474020,1763617168249,-320.095113,0.00030888,31]
[394474021,1763617168279,-313.126214,0.00030888,31]
[394474022,1763617168308,-320.095113,0.00030888,31]
[394474023,1763617168339,-313.126214,0.00030888,31]
[394474024,1763617168368,-304.318294,0.00030888,31]
[394474025,1763617168397,-313.126214,0.00030888,31]
[394474026,1763617168424,-304.318294,0.00030888,31]
[394474027,1763617168452,-151.0,0.00030888,31]
[394474028,1763617168482,-304.318294,0.00030888,31]
[394474029,1763617168510,-304.318294,0.00030888,31]
[394474030,1763617168539,-151.0,0.00030888,31]
[394474031,1763617168570,-151.0,0.00030888,31]
[394474032,1763617168601,-163.33916,0.00030888,31]
[394474033,1763617168631,-163.33916,0.00030888,31]
[394474034,1763617168660,-163.33916,0.00030888,31]
[394474035,1763617168690,-163.339158,0.00030888,31]
[394474036,1763617168720,-260.278322,0.00030888,31]
[394474037,1763617168749,-260.278322,0.00030888,31]
[394474038,1763617168778,-260.278322,0.00030888,31]
[394474039,1763617168805,-260.278314,0.00030888,31]
[394474040,1763617168834,-151.0,0.00030888,31]
[394474041,1763617168870,-180.179548,0.00030888,31]
[394474042,1763617168900,-151.0,0.00030888,31]
[394474043,1763617168927,-151.0,0.00030888,31]
[394474044,1763617168955,-239.707317,0.00030888,31]
[394474045,1763617168983,-239.707317,0.00030888,31]
[394474046,1763617169011,-151.0,0.00030888,31]
[394474047,1763617169040,-239.707317,0.00030888,31]
[394474048,1763617169071,-239.707315,0.00030888,31]
[394474049,1763617169100,-162.570063,0.00030888,31]
[394474050,1763617169128,-162.570063,0.00030888,31]
[394474051,1763617169156,-283.52338,0.00030888,31]
[394474052,1763617169185,-162.570063,0.00030888,31]
[394474053,1763617169214,-283.52338,0.00030888,31]
[394474054,1763617169244,-283.52338,0.00030888,31]
[394474055,1763617169274,-162.570061,0.00030888,31]
[394474056,1763617169305,-283.523383,0.00030888,31]
[394474057,1763617169333,-429.831757,0.00030888,31]
[394474058,1763617169361,-429.831757,0.00030888,31]
[394474059,1763617169390,-151.0,0.00030888,31]
[394474060,1763617169418,-162.827408,0.00030888,31]
[394474061,1763617169445,-429.831757,0.00030888,31]
[394474062,1763617169475,-429.831752,0.00030888,31]
[394474063,1763617169505,-151.0,0.0003095,31]
[394474064,1763617169534,-151.0,0.0003095,31]
[394474065,1763617169562,-458.81,0.00031,30]
[394474066,1763617169595,-458.81,0.000326,30]
[394474067,1763617169627,-404.24214339,0.00032877,120]
[394474068,1763617169657,-1500.00000005,0.00032877,120]
[394474069,1763617169684,-24004.0,0.00032877,120]
[394474070,1763617169712,-500.0,0.00032877,60]
[394474071,1763617169741,-500.0,0.00032904,60]
[394474072,1763617169771,-500.0,0.00032932,60]
[394474073,1763617169802,-500.0,0.00032959,60]
[394474074,1763617169831,-500.0,0.00032987,60]
[394474075,1763617169862,-2666.47960226,0.00033,120]
[394474076,1763617169891,-197.93985363,0.00033014,60]
[394474077,1763617169921,-192.0,0.00033724,120]
[394474078,1763617169950,-300.0,0.00034,120]
[394474079,1763617170128,-1016.12557925,0.00034,120]
[394474080,1763617170156,-2000.0,0.00034248,120]
[394474081,1763617170185,-1107.0,0.00034386,120]
[394474082,1763617170214,-458.81,0.000344,30]
[394474083,1763617170242,-925.2,0.00034751,30]
[394474084,1763617170272,-896.42,0.00035,30]
[394474085,1763617170300,-1129.51381087,0.00035,60]
[394474086,1763617170328,-1430.0,0.00035,30]
[394474087,1763617170358,-192.0,0.0003541,120]
[394474088,1763617170388,-183.48,0.00035445,120]
[394474089,1763617170419,-608.0,0.00035616,120]
[394474090,1763617170452,-608.0,0.00035643,120]
[394474091,1763617170486,-608.0,0.00035671,120]
[394474092,1763617170520,-608.0,0.00035698,120]
[394474093,1763617170554,-608.0,0.00035726,120]
[394474094,1763617170584,-2000.0,0.00035748,120]
[394474095,1763617170613,-608.0,0.00035753,120]
[394474096,1763617170643,-608.0,0.0003578,120]
[394474097,1763617170672,-608.0,0.00035808,120]
[394474098,1763617170700,-608.0,0.00035835,120]
[394474099,1763617170727,-608.0,0.00035863,120]
[394474100,1763617170754,-599.77692,0.00035888,30]
[394474101,1763617170781,-608.0,0.0003589,120]
[394474102,1763617170810,-458.81,0.000359,30]
[394474103,1763617170837,-608.0,0.00035917,120]
[394474104,1763617170868,-608.0,0.00035945,120]
[394474105,1763617170894,-608.0,0.00035972,120]
[394474106,1763617170926,-608.0,0.00036,120]
[394474107,1763617170957,-300.0,0.00036,120]
[394474108,1763617170986,-164.0,0.00036,30]
[394474109,1763617171015,-608.0,0.00036027,120]
[394474110,1763617171043,-608.0,0.00036054,120]
[394474111,1763617171071,-608.0,0.00036082,120]
[394474112,1763617171100,-599.77692,0.00036088,30]
[394474113,1763617171128,-1107.0,0.00036105,120]
[394474114,1763617171156,-608.0,0.00036109,120]
[394474115,1763617171189,-608.0,0.00036137,120]
[394474116,1763617171218,-608.0,0.00036164,120]
[394474117,1763617171246,-608.0,0.00036191,120]
[394474118,1763617171276,-608.0,0.00036219,120]
[394474119,1763617171305,-616.25878194,0.00036246,120]
[394474120,1763617171336,-599.77692,0.00036288,30]
[394474121,1763617171365,-201.25777895,0.00036359,120]
[394474122,1763617171393,-246.05156352,0.00036359,120]
[394474123,1763617171421,-164.0,0.00036464,30]
[394474124,1763617171456,-599.77692,0.00036488,30]
[394474125,1763617171486,-599.77692,0.00036688,30]
[394474126,1763617171516,-599.77692,0.00036888,30]
[394474127,1763617171549,-330.79,0.00036986,30]
[394474128,1763617171586,-320.095113,0.00037,31]
[394474129,1763617171622,-320.095113,0.00037,31]
[394474130,1763617171651,-313.126214,0.00037,31]
[394474131,1763617171679,-320.095113,0.00037,31]
[394474132,1763617171707,-313.126214,0.00037,31]
[394474133,1763617171734,-320.095121,0.00037,31]
[394474134,1763617171762,-313.126214,0.00037,31]
[394474135,1763617171790,-304.318294,0.00037,31]
[394474136,1763617171819,-313.126211,0.00037,31]
[394474137,1763617171848,-304.318294,0.00037,31]
[394474138,1763617171881,-151.0,0.00037,31]
[394474139,1763617171910,-304.318294,0.00037,31]
[394474140,1763617171941,-304.318291,0.00037,31]
[394474141,1763617171970,-157.331359,0.00037,31]
[394474142,1763617171999,-151.0,0.00037,31]
[394474143,1763617172029,-599.77692,0.00037088,30]
[394474144,1763617172060,-458.81,0.000372,30]
[394474145,1763617172089,-500.0,0.00037202,30]
[394474146,1763617172118,-500.0,0.00037202,30]
[394474147,1763617172145,-500.0,0.00037202,30]
[394474148,1763617172173,-500.0,0.00037202,30]
[394474149,1763617172200,-500.0,0.00037202,30]
[394474150,1763617172230,-500.0,0.00037202,30]
[394474151,1763617172258,-500.0,0.00037202,30]
[394474152,1763617172286,-500.0,0.00037202,30]
[394474153,1763617172313,-500.0,0.00037202,30]
[394474154,1763617172341,-500.0,0.00037202,30]
[394474155,1763617172368,-760.05745376,0.00037202,30]
[394474156,1763617172396,-500.0,0.00037202,30]
[394474157,1763617172423,-500.0,0.00037202,30]
[394474158,1763617172451,-500.0,0.00037202,30]
[394474159,1763617172478,-500.0,0.00037202,30]
[394474160,1763617172507,-927.00922242,0.00037202,30]
[394474161,1763617172534,-500.0,0.00037202,30]
[394474162,1763617172562,-500.0,0.00037202,30]
[394474163,1763617172591,-500.0,0.00037202,30]
[394474164,1763617172620,-500.0,0.00037202,30]
[394474165,1763617172648,-500.0,0.00037202,30]
[394474166,1763617172675,-500.0,0.00037202,30]
[394474167,1763617172701,-500.0,0.00037202,30]
[394474168,1763617172728,-500.0,0.00037202,30]
[394474169,1763617172755,-500.0,0.00037202,30]
[394474170,1763617172781,-500.0,0.00037202,30]
[394474171,1763617172808,-500.0,0.00037202,30]
[394474172,1763617172835,-500.0,0.00037202,30]
[394474173,1763617172866,-500.0,0.00037202,30]
[394474174,1763617172893,-500.0,0.00037202,30]
[394474175,1763617172919,-500.0,0.00037202,30]
[394474176,1763617172946,-919.72431635,0.00037202,30]
[394474177,1763617172973,-500.0,0.00037202,30]
[394474178,1763617173000,-500.0,0.00037202,30]
[394474179,1763617173039,-500.0,0.00037202,30]
[394474180,1763617173067,-500.0,0.00037202,30]
[394474181,1763617173094,-500.0,0.00037202,30]
[394474182,1763617173296,-500.0,0.00037202,30]
[394474183,1763617173325,-985.72527835,0.00037202,30]
[394474184,1763617173356,-649.17069745,0.00037202,30]
[394474185,1763617173390,-500.0,0.00037202,30]
[394474186,1763617173421,-1300.0,0.00037202,30]
[394474187,1763617173450,-500.0,0.00037202,30]
[394474188,1763617173481,-1300.0,0.00037202,30]
[394474189,1763617173510,-500.0,0.00037202,30]
[394474190,1763617173539,-1300.0,0.00037202,30]
[394474191,1763617173568,-500.0,0.00037202,30]
[394474192,1763617173597,-1300.0,0.00037202,30]
[394474193,1763617173626,-500.0,0.00037202,30]
[394474194,1763617173655,-1300.0,0.00037202,30]
[394474195,1763617173683,-500.0,0.00037202,30]
[394474196,1763617173712,-1300.0,0.00037202,30]
[394474197,1763617173740,-500.0,0.00037202,30]
[394474198,1763617173769,-1300.0,0.00037202,30]
[394474199,1763617173798,-500.0,0.00037202,30]
[394474200,1763617173828,-1300.0,0.00037202,30]
[394474201,1763617173859,-500.0,0.00037202,30]
[394474202,1763617173894,-1300.0,0.00037202,30]
[394474203,1763617173923,-500.0,0.00037202,30]
[394474204,1763617173952,-1300.0,0.00037202,30]
[394474205,1763617173980,-500.0,0.00037202,30]
[394474206,1763617174008,-1300.0,0.00037202,30]
[394474207,1763617174037,-500.0,0.00037202,30]
[394474208,1763617174066,-802.3781414,0.00037202,30]
[394474209,1763617174095,-500.0,0.00037202,30]
[394474210,1763617174126,-1300.0,0.00037202,30]
[394474211,1763617174159,-526.57482815,0.00037202,30]
[394474212,1763617174187,-500.0,0.00037202,30]
[394474213,1763617174215,-1300.0,0.00037202,30]
[394474214,1763617174245,-500.0,0.00037202,30]
[394474215,1763617174274,-500.0,0.00037202,30]
[394474216,1763617174302,-1300.0,0.00037202,30]
[394474217,1763617174330,-500.0,0.00037202,30]
[394474218,1763617174359,-500.0,0.00037202,30]
[394474219,1763617174389,-1300.0,0.00037202,30]
[394474220,1763617174422,-500.0,0.00037202,30]
[394474221,1763617174450,-1300.0,0.00037202,30]
[394474222,1763617174480,-744.34548374,0.00037202,30]
[394474223,1763617174510,-500.0,0.00037202,30]
[394474224,1763617174540,-1300.0,0.00037202,30]
[394474225,1763617174570,-500.0,0.00037202,30]
[394474226,1763617174600,-1300.0,0.00037202,30]
[394474227,1763617174629,-500.0,0.00037202,30]
[394474228,1763617174657,-1300.0,0.00037202,30]
[394474229,1763617174691,-500.0,0.00037202,30]